Cogmind - Beta 17.1 @@@ ROGUE MODE // 2026.09.08 @ 14:13:06 Player: H3-MLN Result: Establishing 0b11! Performance ------------- Evolutions (9) 4500 Regions Visited (25) 5000 Robots Destroyed (361) 1805 Value Destroyed (18627) 18627 Prototype IDs (375) 7500 Alien Tech Used (7) 1400 Bonus (31716) 31716 TOTAL SCORE: 70548 Bonus ------- High Alert Combat Kills 2078 Follower Combat Kills 518 Forged Quantum Companion 2000 Registered with UFD 300 Met Optimus in HQ 500 Met Imprinter 300 Met Zhirov 300 Met Warlord at Base 500 MAIN.C Attacked Warlord 500 Warlord Defense Kills 220 Hacked Protovariant 500 Met Optimus at Protoforge 1000 Met MAIN.C 5000 Destroyed MAIN.C Shell 5000 Destroyed MAIN.C 10000 Win 3000 Cogmind --------- Core Integrity 1032/1600 Matter 300/300 Energy 143/480 System Corruption 26% Temperature Warning (336) Movement Hovering (17) Location 0b11 Command Parts ------- > --- POWER (2) -------- Particle Reactor Zero-point Reactor > --- PROPULSION (9) --- Cooled Antigrav System Cooled Antigrav System Cooled Antigrav System Combat Antigrav System Combat Linear Gravjet Combat Linear Gravjet Combat Linear Gravjet Gravjet Array > --- UTILITY (10) ----- High-capacity Storage Unit Improved Melee Analysis Suite Experimental Core Analyzer Experimental Core Analyzer Experimental Propulsion Shielding Layered Heavy Armor Plating Centrium Heavy Armor Plating AEGIS Remote Shield > --- WEAPON (4) ------- Superquantum Companion > --- INVENTORY (20) --- Micro Antimatter Reactor High-density Centrium Heavy Treads Improved Antigrav System Improved Antigrav System Improved Antigrav System Cooled Antigrav System Combat Linear Gravjet Large Storage Unit Experimental Matter Compressor (500) Long-range Sensor Array Microactuators Experimental Actuator Array Experimental Actuator Array Experimental Shock Absorption System Advanced Point Defense System Peak State ------------ > --- POWER ------------ Improved Fusion Compressor Light Quantum Reactor > --- PROPULSION ------- Antigrav Array Combat Linear Gravjet Combat Linear Gravjet Combat Linear Gravjet Combat Linear Gravjet Combat Linear Gravjet Gravjet Array > --- UTILITY ---------- High-capacity Storage Unit Experimental Energy Well Experimental Optical Array Experimental Core Analyzer Experimental Core Analyzer Experimental Actuator Array Experimental Reaction Control System Centrium Heavy Armor Plating AEGIS Remote Shield > --- WEAPON ----------- Superquantum Companion Sigix Broadsword Plasma Lance > --- INVENTORY -------- Light Antimatter Reactor Light Quantum Reactor Light Quantum Reactor Hybrid Graviton Reactor Advanced Heavy Siege Treads Improved Antigrav System Improved Antigrav System Combat Antigrav System Advanced Heat Sink Large Storage Unit Experimental Matter Compressor Long-range Sensor Array Improved Melee Analysis Suite Improved Melee Analysis Suite Experimental Actuator Array Centrium Light Armor Plating Centrium Medium Armor Plating [Rating: 245] Favorites ----------- Power Light Angular Momentum Engine Engine Light Angular Momentum Engine Power Core Light Nuclear Core Reactor Light Antimatter Reactor Propulsion Carbon-fiber Leg Treads Improved Treads Leg Carbon-fiber Leg Wheel Centrium Wheel Hover Unit Combat Antigrav System Flight Unit Cooled Field Propulsion Drive Utility Improved Melee Analysis Suite Device IFF Parser Storage Large Storage Unit Processor Improved Melee Analysis Suite Hackware Improved Hacking Suite Protection Improved Light Armor Plating Weapon Companion Sword Ballistic Cannon Omega Cannon Impact Weapon Shock Maul Slashing Weapon Companion Sword Piercing Weapon Plasma Lance Build | -11 -10 -10 -9 -6 -6 -6 -6 -5 -5 -5 -5 -5 -4 -4 -4 -4 -4 -3 -3 -3 -2 -2 -2 -1 -1 ------- Run | Yrd Mat Sub Scr Fac Low Low Zio Pro Fac Upp Upp War Pro Fac Upp Upp Zhi Pro Res Tes Res Qua Frg Acc Com Slots Evolved 18 | . . . . 8 . . . . 2 . . . . 2 . . . . 2 . 2 . . 2 . Power 1 | . . . . . . . . . 1 . . . . . . . . . . . . . . . . Propulsion 7 | . . . . 3 . . . . . . . . . 1 . . . . 2 . 1 . . . . Utility 8 | . . . . 5 . . . . 1 . . . . 1 . . . . . . 1 . . . . Weapon 2 | . . . . . . . . . . . . . . . . . . . . . . . . 2 . Parts Attached 403 | 4 1 4 8 57 3 10 4 6 29 2 4 15 3 39 12 6 4 21 40 16 7 39 26 19 24 Power 64 | 1 . . 1 7 1 2 1 1 8 1 . 1 . 8 2 2 . 3 3 2 1 6 5 2 6 Engine 17 | 1 . . 1 5 . 2 . 1 2 1 . . . 2 1 1 . . . . . . . . . Core 13 | . . . . 2 1 . 1 . 5 . . . . 2 . . . . . . . 1 . . 1 Reactor 34 | . . . . . . . . . 1 . . 1 . 4 1 1 . 3 3 2 1 5 5 2 5 Propulsion 152 | 2 . 2 2 24 1 6 1 1 9 . . 1 2 18 2 1 1 9 21 4 1 21 6 10 7 Treads 7 | 2 . . 2 . . . . . . . . . . . . . . . . . . . . . 3 Leg 71 | . . 2 . 24 1 6 1 1 9 . . 1 2 18 2 1 1 2 . . . . . . . Wheel 1 | . . . . . . . . . . . . . . . . . . 1 . . . . . . . Hover 45 | . . . . . . . . . . . . . . . . . . 3 10 . . 14 4 10 4 Flight 28 | . . . . . . . . . . . . . . . . . . 3 11 4 1 7 2 . . Utility 166 | 1 1 2 3 23 . 2 1 4 12 1 4 11 1 12 7 3 3 7 15 7 5 10 14 6 11 Device 74 | . . . 2 6 . . . 3 5 . 3 3 . 5 3 2 . 5 12 2 1 8 9 2 3 Storage 16 | 1 . . 1 . . . 1 . 2 1 . 1 1 1 1 . 1 . 1 . 1 . . 1 2 Processor 21 | . . . . 6 . 1 . . 1 . 1 3 . 1 2 . . . 1 . . 1 2 . 2 Hackware 15 | . . . . 1 . . . . 1 . . . . 3 . . . . 1 2 3 1 1 2 . Protection 40 | . 1 2 . 10 . 1 . 1 3 . . 4 . 2 1 1 2 2 . 3 . . 2 1 4 Artifact . | . . . . . . . . . . . . . . . . . . . . . . . . . . Weapon 21 | . . . 2 3 1 . 1 . . . . 2 . 1 1 . . 2 1 3 . 2 1 1 . Energy Gun . | . . . . . . . . . . . . . . . . . . . . . . . . . . Energy Cannon . | . . . . . . . . . . . . . . . . . . . . . . . . . . Ballistic Gun . | . . . . . . . . . . . . . . . . . . . . . . . . . . Ballistic Cannon 1 | . . . . . . . . . . . . . . . . . . . . 1 . . . . . Launcher . | . . . . . . . . . . . . . . . . . . . . . . . . . . Special Weapon . | . . . . . . . . . . . . . . . . . . . . . . . . . . Impact Weapon 4 | . . . 1 2 . . . . . . . 1 . . . . . . . . . . . . . Slashing Weapon 13 | . . . 1 1 1 . 1 . . . . 1 . 1 1 . . 1 1 1 . 2 . 1 . Piercing Weapon 3 | . . . . . . . . . . . . . . . . . . 1 . 1 . . 1 . . Special Melee Weapon . | . . . . . . . . . . . . . . . . . . . . . . . . . . Unidentified Prototypes 57 | . . . 1 2 . . . . 4 . . 9 . 1 . . 3 9 3 6 . 7 9 2 1 Parts Lost 171 | . . 5 . 18 7 3 . 2 25 1 . 1 1 28 4 1 . 10 9 6 1 18 8 4 19 Power 26 | . . . . 1 . . . . 4 1 . . . 5 . . . 1 1 1 . 4 1 1 6 Propulsion 65 | . . 2 . 8 5 1 . 1 8 . . . 1 8 2 1 . 4 5 1 . 7 4 3 4 Utility 72 | . . 3 . 9 2 2 . 1 12 . . 1 . 14 2 . . 4 3 3 1 6 2 . 7 Weapon 8 | . . . . . . . . . 1 . . . . 1 . . . 1 . 1 . 1 1 . 2 Highest Loss Streak 14 | . . 3 . 6 4 2 . 1 7 1 . 1 1 14 4 1 . 7 3 5 1 5 4 1 10 To Critical Strikes 1 | . . . . . . . . . . . . . . 1 . . . . . . . . . . . Average Backups 12 | 2 5 4 8 12 10 12 12 12 11 12 12 13 12 12 11 13 13 14 14 18 18 18 11 12 15 Power 1 | . 1 . . 1 1 1 . . . 2 2 2 1 1 2 2 2 1 . . . 1 2 2 1 Propulsion 2 | 1 2 1 . 2 2 4 5 3 3 5 6 3 1 . 1 . . . . 1 3 1 . 2 5 Utility 7 | . 2 2 6 7 4 5 6 7 6 4 4 6 8 8 4 8 8 8 10 12 13 11 6 7 8 Weapon 1 | . . . . . 1 1 1 1 . . . . 2 1 2 3 3 2 2 1 1 1 1 . . Tool/Special . | . . . . . . . . . . . . . . . . . . . . . . . . . . Unused Backups 56 | . . 1 2 7 . 3 1 1 2 . . 9 . 7 2 . . 3 3 4 . . 5 1 5 Power 10 | . . 1 . 1 . 1 . . 1 . . 1 . 2 . . . . . . . . 2 . 1 Propulsion 17 | . . . . 2 . . 1 1 . . . 7 . 1 . . . . 1 1 . . 1 1 1 Utility 26 | . . . 2 4 . 2 . . 1 . . 1 . 4 . . . 3 2 2 . . 2 . 3 Weapon 3 | . . . . . . . . . . . . . . . 2 . . . . 1 . . . . . Tool/Special . | . . . . . . . . . . . . . . . . . . . . . . . . . . Average Slot Usage (%) 89 | . 69 53 74 89 99 98 100 100 89 81 89 95 92 91 95 99 99 91 95 93 94 92 85 85 75 Engine 3 | . 14 10 12 5 2 4 2 3 2 2 5 2 . 1 4 3 . . . . . . . . . Core 1 | . . . . . 3 1 3 2 6 5 5 2 . 2 . . . . . . . 1 . . . Reactor 3 | . . . . . . . . . . 2 . 2 5 3 5 6 10 8 8 8 8 5 7 8 6 Treads 2 | . 28 22 21 2 . . . . . . . . . . . . . . . . . . . . 2 Leg 20 | . . 3 6 30 32 33 33 33 28 29 29 29 28 30 30 30 31 17 . . . . . . . Hover 4 | . . . . . . . . . . . . . . . . . . 2 20 . . 16 28 29 22 Flight 2 | . . . . . . . . . . . . . . . . . . 3 14 32 34 19 . . . Device 13 | . . . 12 10 11 13 13 13 7 11 18 20 15 15 15 15 11 13 20 20 14 15 12 11 10 Storage 6 | . 14 1 12 6 6 6 6 6 5 10 11 10 5 5 5 5 5 5 4 4 4 4 5 4 6 Processor 13 | . . . . 15 20 18 20 20 17 5 5 8 17 14 17 21 21 19 15 14 13 13 18 16 12 Protection 4 | . 12 15 . 8 7 6 6 6 5 . . 3 5 4 4 5 7 6 . . . 1 1 4 6 Impact Weapon 1 | . . . 1 . . . . . 1 5 5 5 5 4 . . . . . . . . . . . Slashing Weapon 7 | . . . 6 6 13 13 13 13 8 5 5 5 5 5 10 10 10 9 9 6 4 4 5 7 5 Peak Build Rating 245 | 4 5 5 21 61 61 66 68 69 87 80 88 115 134 148 140 137 133 157 177 174 186 193 225 239 245 Average Rating 101 | 3 4 3 14 51 58 63 66 67 76 73 77 100 129 133 135 133 129 134 162 166 182 180 202 231 194 On Entrance 101 | . 4 5 2 21 60 59 66 66 69 73 72 87 115 134 113 137 130 130 151 161 169 186 169 223 238 Avg Prop Armor Cover (%) 9 | . . 37 27 10 . . 6 10 5 7 7 5 . 6 . . . 2 2 . . 8 9 . 3 Naked Turns 15 | . . 15 . . . . . . . . . . . . . . . . . . . . . . . Heaviest Build 132 | 10 13 13 30 53 44 52 49 47 83 56 51 95 93 103 59 66 68 68 75 79 81 98 111 128 132 Greatest Support 200 | 40 40 40 55 80 75 85 85 70 91 88 68 88 98 140 148 148 148 153 102 83 93 130 139 139 200 Greatest Overweight (x) 3 | . . . 2 1 . . . 1 1 . . 1 1 . . . . 3 1 . . 2 . 1 2 Average Overweight (x) . | . . . . . . . . . . . . . . . . . . . . . . . . . . Largest Inventory Capacity 20 | 8 8 8 15 15 15 15 15 15 15 15 15 15 15 15 15 15 15 15 20 20 20 20 20 20 20 Average Capacity 15 | 7 8 5 12 15 15 15 15 15 15 15 15 15 15 15 15 15 15 15 16 20 20 20 20 20 18 Most Carried 20 | 3 6 6 15 15 15 15 15 15 15 15 15 15 15 15 15 15 15 15 20 20 20 20 20 20 20 Average Carried 13 | 2 5 4 9 14 12 14 14 14 13 14 14 14 14 13 12 14 14 14 15 19 19 19 18 12 16 Final Capacity 20 | 8 8 5 15 15 15 15 15 15 15 15 15 15 15 15 15 15 15 15 20 20 20 20 20 20 20 Final Carried 20 | 3 6 3 15 15 13 15 15 15 15 15 15 14 15 11 15 14 15 14 20 20 20 19 18 20 16 Class Distribution -------------------- 49% | Scavenger-Gladiator 16% | Scavenger-Mutant 15% | Mutant 4% | Scavenger-Sprinter 4% | Derelict-Gladiator 3% | Scavenger-Scout Dominant Class ---------------- Mutant | -10/Materials Mutant | -10/Subcaves Mutant | -9/Scraptown Scavenger-Mutant | -6/Factory Scavenger-Gladiator | -6/Lower Caves Scavenger-Gladiator | -6/Lower Caves Scavenger-Gladiator | -6/Zion Derelict-Gladiator | -5/Proximity Caves Scavenger-Gladiator | -5/Factory Scavenger-Gladiator | -5/Upper Caves Scavenger-Gladiator | -5/Upper Caves Scavenger-Gladiator | -5/Warlord Scavenger-Gladiator | -4/Proximity Caves Scavenger-Gladiator | -4/Factory Scavenger-Mutant | -4/Upper Caves Scavenger-Gladiator | -4/Upper Caves Scavenger-Gladiator | -4/Zhirov Scavenger-Gladiator | -3/Proximity Caves Scavenger-Gladiator | -3/Research Scavenger-Sprinter | -3/Testing Scavenger-Sprinter | -2/Research Scavenger-Mutant | -2/Quarantine Scavenger-Scout | -2/Protoforge Scavenger-Gladiator | -1/Access Scavenger-Mutant | -1/Command Resources | -11 -10 -10 -9 -6 -6 -6 -6 -5 -5 -5 -5 -5 -4 -4 -4 -4 -4 -3 -3 -3 -2 -2 -2 -1 -1 ----------- Run | Yrd Mat Sub Scr Fac Low Low Zio Pro Fac Upp Upp War Pro Fac Upp Upp Zhi Pro Res Tes Res Qua Frg Acc Com Matter Collected 7079 | 235 10 28 100 933 129 116 40 100 513 124 67 185 79 480 167 114 86 409 519 312 61 640 491 761 380 Remotely . | . . . . . . . . . . . . . . . . . . . . . . . . . . Salvage Created 24132 | . . . . 3608 412 396 . 276 2753 240 93 88 411 2749 554 331 331 1134 1598 589 230 1856 1405 2865 2213 Parts 1055 | 1 . . . 154 19 20 . 10 110 9 . 5 20 139 20 12 5 53 73 34 4 98 61 142 66 Haulers Intercepted 15 | . . . . 2 . . . . . . . . . 3 . . . 1 2 1 1 . . 5 . Recyclers Shooed 6 | . . . . 3 . . . . 1 . . . . 2 . . . . . . . . . . . Parts Field Recycled . | . . . . . . . . . . . . . . . . . . . . . . . . . . Retrieved Matter . | . . . . . . . . . . . . . . . . . . . . . . . . . . Parts Self-Destructed 161 | . . 7 . . 15 17 . 10 . 10 . . 21 . 11 6 4 60 . . . . . . . Prevented 5 | . . . . . . . . . . 5 . . . . . . . . . . . . . . . Parts Restored . | . . . . . . . . . . . . . . . . . . . . . . . . . . Kills | -11 -10 -10 -9 -6 -6 -6 -6 -5 -5 -5 -5 -5 -4 -4 -4 -4 -4 -3 -3 -3 -2 -2 -2 -1 -1 ------- Run | Yrd Mat Sub Scr Fac Low Low Zio Pro Fac Upp Upp War Pro Fac Upp Upp Zhi Pro Res Tes Res Qua Frg Acc Com Combat Hostiles Destroyed 275 | . . . . 46 11 6 . 7 36 4 . 1 6 31 4 5 . 11 15 5 1 24 19 31 12 Melee 231 | . . . . 46 11 3 . 7 30 4 . 1 5 21 4 5 . 9 10 5 1 19 12 29 9 Cannons 15 | . . . . . . . . . . . . . . 5 . . . . 1 . . 2 5 . 2 Classes Destroyed 26 | 1 . . . 8 . . . . 4 2 . 2 . 3 . . . 1 . 1 . . 3 1 . Worker 17 | 1 . . . 7 . . . . 5 . . . . 2 . . . . 1 . . . . 1 . Builder 10 | . . . . 3 . . . . 2 . . . . 1 . . . . 4 . . . . . . Tunneler 2 | . . . . . . . . . 1 . . . . . . . . . . . . . . 1 . Hauler 15 | . . . . 2 . . . . . . . . . 3 . . . 1 2 1 1 . . 5 . Recycler 14 | . . . . 5 . . . . 5 . . . . 1 . . . . 2 . . . . 1 . Mechanic 4 | . . . . . . . . . . . . 1 . 1 . . . . . . . 1 1 . . Operator 10 | . . . . . . . . . . . . . . 3 . . . . 1 2 . 2 1 1 . Drone 2 | . . . . . . . . . . . . . . . . . . . . . . . 2 . . Watcher 10 | . . . . . . . . . 1 . . . . . . . . . . 1 1 1 1 4 1 Swarmer 46 | . . . . 3 9 . . 5 9 3 . . . . . 2 . . 4 . . 6 2 2 1 Cutter 10 | . . . . . . . . . . . . . . . . . . . . . . . . 10 . Grunt 100 | . . . . 30 1 5 . 1 16 . . . 2 10 . . . 5 5 . 1 8 4 12 . Brawler 2 | . . . . . . . . . 2 . . . . . . . . . . . . . . . . Duelist 1 | . . . . . . . . . . . . . . . . . . . . . . . 1 . . Protector 3 | . . . . . . . . . . . . . . . . . . 2 . . . . 1 . . Researcher 3 | . . . . . . . . . . . . . . . . . . . . 1 . 2 . . . Sentry 16 | . . . . 5 1 . . 1 1 . . . 1 2 . 1 . 1 . . . . 1 1 1 Specialist 4 | . . . . . . . . . 2 . . . . 2 . . . . . . . . . . . Hunter 24 | . . . . 3 . 1 . . 1 . . . . 5 4 . . 2 . 2 . 2 2 2 . Programmer 48 | . . . . 5 . . . . 5 . . . 3 8 . 1 . . 5 3 . 8 2 2 6 Heavy 4 | . . . . . . . . . . . . . . 3 . . . . . . . . . . 1 Behemoth 2 | . . . . . . . . . . . . . . 1 . . . . 1 . . . . . . Hotshot 2 | . . . . . . . . . . . . . . . . . . . . . . . 2 . . Combat Programmer 1 | . . . . . . . . . . . . . . . . . . . . . . . . . 1 Striker 6 | . . . . . . . . . . . . 1 . . . . . 2 . . . . 1 2 . Executioner 1 | . . . . . . . . . . . . . . . . . . . . . . . 1 . . Decomposer 1 | . . . . . . 1 . . . . . . . . . . . . . . . . . . . Packrat 2 | . . . . . . . . . . 1 1 . . . . . . . . . . . . . . Samaritan 3 | . . . . . . . . . . 1 . . 1 . 1 . . . . . . . . . . Mutant 2 | . . . . . . . . . . 1 . . . . . 1 . . . . . . . . . Best Kill Streak 8 | 1 . . . 7 4 3 . 4 7 2 . 1 2 4 2 2 . 4 5 3 3 5 4 8 4 Combat Bots Only 7 | . . . . 5 4 3 . 4 5 2 . 1 2 4 2 2 . 4 5 3 1 5 4 7 4 Max Kills in Single Turn 2 | 1 . . . 1 1 1 . 1 2 1 1 1 1 1 1 1 . 1 1 1 1 1 2 2 2 Gunslinging . | . . . . . . . . . . . . . . . . . . . . . . . . . . Exploded . | . . . . . . . . . . . . . . . . . . . . . . . . . . Melee 2 | . . . . 1 1 1 . 1 2 1 . 1 1 1 1 1 . 1 1 1 1 1 1 2 2 Uniques/NPCs Destroyed 2 | . . . . . . . . . . . . . . . . . . . . . . . . . 2 MAIN.C Shell (-1/Command) MAIN.C (-1/Command) Combat | -11 -10 -10 -9 -6 -6 -6 -6 -5 -5 -5 -5 -5 -4 -4 -4 -4 -4 -3 -3 -3 -2 -2 -2 -1 -1 -------- Run | Yrd Mat Sub Scr Fac Low Low Zio Pro Fac Upp Upp War Pro Fac Upp Upp Zhi Pro Res Tes Res Qua Frg Acc Com Hostile Shots Fired 2901 | . 3 45 . 371 87 30 . 45 282 22 . 21 64 424 97 29 . 143 145 77 7 241 305 182 281 Missed 945 | . 1 8 . 116 23 5 . 11 71 5 . 7 18 129 32 7 . 60 48 41 4 65 147 72 75 Deflected 48 | . . . . . . . . . . . . . . 9 2 . . 2 2 4 . 7 7 5 10 Hits 1956 | . 2 37 . 255 64 25 . 34 211 17 . 14 46 295 65 22 . 83 97 36 3 176 158 110 206 Melee 48 | . . . . . . . . . 10 . . 2 . . . . . 5 . . . . 2 29 . Projectile 1908 | . 2 37 . 255 64 25 . 34 201 17 . 12 46 295 65 22 . 78 97 36 3 176 156 81 206 AOE 18 | . . . . . . . . . . . . . . . . . . . . . . . 1 . 17 Critical Strikes 118 | . . 3 . 8 . 1 . . 7 . . 1 4 25 1 3 . 2 11 2 . 6 6 16 22 Actively Blocked 20 | . . . . . . . . . . . . . . 1 1 3 . 2 3 . . 5 5 . . Part Disruptions 10 | . . . . . . . . . 1 1 . . 1 1 . . . . . . . . . 1 5 Actively Blocked 1 | . . . . . . . . . . . . . . 1 . . . . . . . . . . . Damage Taken 35402 | . 23 758 . 3696 743 493 . 550 3384 185 . 418 623 4997 637 436 15 1510 2006 649 177 3646 2634 1682 6140 Core 4996 | . 12 151 . 466 43 115 . 101 512 26 . 59 95 537 115 56 15 246 612 141 52 569 505 126 442 Absorbed by Shields 7854 | . . . . 363 . . . 78 292 67 . 174 383 1220 . . . . 191 . . 148 933 1566 2439 Redirected to Shielding 279 | . . . . 67 . . . . . . . . . 4 . . . 161 . 32 . . . . 15 Ignored by Resistances 1756 | . . . . 40 . . . 21 376 . . . . 782 233 39 . 265 . . . . . . . Regen/Repaired (Parts) 902 | . . . . 25 . . . . . . . 210 . . . . . . . . . . . 491 176 Core Remaining (%) 37 | 100 . . 34 . . . . 14 . . . . 30 . . . . 15 . 42 . . 2 . 64 Volleys Fired . | . . . . . . . . . . . . . . . . . . . . . . . . . . Largest . | . . . . . . . . . . . . . . . . . . . . . . . . . . Hottest . | . . . . . . . . . . . . . . . . . . . . . . . . . . Shots Fired . | . . . . . . . . . . . . . . . . . . . . . . . . . . Gun . | . . . . . . . . . . . . . . . . . . . . . . . . . . Cannon . | . . . . . . . . . . . . . . . . . . . . . . . . . . Launcher . | . . . . . . . . . . . . . . . . . . . . . . . . . . Special . | . . . . . . . . . . . . . . . . . . . . . . . . . . Kinetic . | . . . . . . . . . . . . . . . . . . . . . . . . . . Thermal . | . . . . . . . . . . . . . . . . . . . . . . . . . . Explosive . | . . . . . . . . . . . . . . . . . . . . . . . . . . Electromagnetic . | . . . . . . . . . . . . . . . . . . . . . . . . . . Robot Hit Streak . | . . . . . . . . . . . . . . . . . . . . . . . . . . Robot Miss Streak . | . . . . . . . . . . . . . . . . . . . . . . . . . . Penetration Max . | . . . . . . . . . . . . . . . . . . . . . . . . . . Secondary Targets . | . . . . . . . . . . . . . . . . . . . . . . . . . . Autonomous 58 | . . . . . . . . . . . . . . 11 2 . . 2 2 1 . 7 16 4 13 Shots Hit Robots 927 | . . . . 186 27 17 . 17 124 14 1 5 24 89 20 16 5 37 54 19 4 75 31 86 76 Core Hits 401 | . 2 2 . 68 10 6 . 8 43 6 1 2 9 40 11 5 3 18 16 8 2 29 25 46 41 Critical Kills 1 | . . . . . . . . . . 1 . . . . . . . . . . . . . . . Critical Parts Destroyed 6 | . . . . . . . . . 4 1 . 1 . . . . . . . . . . . . . Critical Strikes 47 | . . . . 7 2 1 . 2 12 2 . 1 2 4 2 . . 2 2 . . 6 . 2 . Smash 7 | . . . . . . . . . 4 2 . 1 . . . . . . . . . . . . . Sever 2 | . . . . 1 . 1 . . . . . . . . . . . . . . . . . . . Melee Attacks 1356 | . . . . 221 35 30 . 38 179 31 2 5 27 120 24 21 6 50 100 43 7 115 55 144 103 Impact 47 | . . . . 7 . . . . 22 14 1 1 2 . . . . . . . . . . . . Slashing 1289 | . . . . 214 35 30 . 38 157 17 1 4 25 120 24 21 6 50 100 43 7 115 55 132 95 Piercing 20 | . . . . . . . . . . . . . . . . . . . . . . . . 12 8 Sneak Attacks 107 | . . . . 26 1 1 . . 13 3 1 . 1 14 1 . . 1 12 3 2 11 6 11 . Combat Hostiles 12 | . . . . 4 1 . . . . . . . . 1 . . . . 2 . . 2 1 1 . Follow-up Attacks 76 | . . . . 5 5 4 . 2 20 4 . 1 2 2 . . . 4 1 2 . 2 1 15 6 Damage Inflicted 62977 | 15 13 26 . 9184 1297 650 . 749 5541 770 81 181 1291 6590 1482 1011 657 2575 3909 1679 413 5799 4286 7580 7198 Guns . | . . . . . . . . . . . . . . . . . . . . . . . . . . Cannons 5013 | . . . . . . . . . . . . . . 955 169 . . 175 174 70 . 582 1411 350 1127 Explosions 72 | . . . . . . . . . . . . . . . . . . . . . . . . 72 . Melee 57658 | . . . . 9184 1297 650 . 749 5509 770 81 181 1291 5624 1313 1011 657 2400 3735 1589 413 5217 2875 7158 5954 Ramming 234 | 15 13 26 . . . . . . 32 . . . . 11 . . . . . 20 . . . . 117 Kinetic . | . . . . . . . . . . . . . . . . . . . . . . . . . . Thermal 72 | . . . . . . . . . . . . . . . . . . . . . . . . 72 . Explosive . | . . . . . . . . . . . . . . . . . . . . . . . . . . Electromagnetic . | . . . . . . . . . . . . . . . . . . . . . . . . . . Impact 1056 | . . . . . . . . . 745 203 . 42 66 . . . . . . . . . . . . Slashing 55524 | . . . . 9184 1297 650 . 749 4764 567 81 139 1225 5624 1313 1011 657 2400 3735 1589 413 5217 2875 6798 5236 Piercing 1078 | . . . . . . . . . . . . . . . . . . . . . . . . 360 718 Phasic 5013 | . . . . . . . . . . . . . . 955 169 . . 175 174 70 . 582 1411 350 1127 Highest Corruption 28 | . . . . 5 5 5 5 . 28 28 28 22 2 4 4 5 5 5 9 5 . 11 13 2 26 Average Corruption 8 | . . . . 2 5 5 5 . 18 28 26 22 1 3 4 4 5 5 5 3 . 9 11 1 13 Corruption Purged 13 | . . . . . . . . . . . 6 . . . . . . . 7 . . . . . . Corruption Blocked . | . . . . . . . . . . . . . . . . . . . . . . . . . . Effects 336 | . . . . 30 9 14 2 . 32 33 20 2 3 12 17 16 8 24 16 8 . 20 42 7 21 Message Errors 80 | . . . . 10 2 3 2 . 6 4 7 . 2 3 1 7 . 6 3 2 . 2 12 5 3 Matter Fused 91 | . . . . 6 2 4 . . 10 12 1 . 1 2 9 2 3 11 4 3 . 6 8 1 6 Heat Flow Errors 49 | . . . . 3 3 1 . . 4 7 7 . . 3 2 2 3 1 4 2 . 3 2 1 1 Energy Discharges 52 | . . . . 9 1 4 . . 5 6 1 . . 3 2 1 2 3 4 1 . 4 5 . 1 Parts Rejected 6 | . . . . . . . . . 1 . . . . . . . . 1 . . . 1 2 . 1 Parts Fused 6 | . . . . . . 1 . . . 1 1 . . . . 1 . . . . . . 2 . . Data Loss (minor) 30 | . . . . 2 1 1 . . 4 2 2 1 . 1 2 1 . 1 1 . . 4 2 . 5 Data Loss (major) 7 | . . . . . . . . . . 1 1 1 . . 1 1 . . . . . . 2 . . Alerts 4 | . . . . . . . . . 1 . . . . . . 1 . 1 . . . . 1 . . Misdirections 11 | . . . . . . . . . 1 . . . . . . . . . . . . . 6 . 4 Overload Shots . | . . . . . . . . . . . . . . . . . . . . . . . . . . Overflow Damage 5995 | . . . . 864 165 32 . 38 904 221 . 59 15 735 117 151 174 23 743 202 58 562 303 528 101 Projectiles 229 | . . . . . . . . . . . . . . 57 52 . . . . . . 55 43 . 22 Explosions 17 | . . . . . . . . . . . . 17 . . . . . . . . . . . . . Melee 5749 | . . . . 864 165 32 . 38 904 221 . 42 15 678 65 151 174 23 743 202 58 507 260 528 79 Knockbacks 7 | . 1 1 . . . . . . 4 . . 1 . . . . . . . . . . . . . Impact 6 | . 1 1 . . . . . . 3 . . 1 . . . . . . . . . . . . . Kinetic . | . . . . . . . . . . . . . . . . . . . . . . . . . . Secondary 1 | . . . . . . . . . 1 . . . . . . . . . . . . . . . . Self-Inflicted Damage 357 | . . . . . . . . . . . . 179 . . . . . . . 10 . . . 110 58 Shots 2 | . . . . . . . . . . . . 1 . . . . . . . . . . . 1 . Rammed 41 | 10 3 25 . . . . . . . . . . . . . . . . . 1 . . . . 2 Targets Rammed 44 | 11 3 25 . . . . . . 1 . . . . 1 . . . . . 1 . . . . 2 Kicked 2 | . . . . . . . . . 1 . . . . 1 . . . . . . . . . . . Crushed 1 | 1 . . . . . . . . . . . . . . . . . . . . . . . . . Highest Temperature 350 | . . . . 260 206 127 . . 247 265 229 . . 181 194 350 218 134 123 . 140 177 211 216 326 Average Temperature 61 | . . . . 101 93 66 . . 81 91 107 . . 52 85 140 104 46 16 . 36 98 90 22 65 Received Heat Transfer 3770 | . 12 6 . 1366 66 186 . 72 685 . . 43 89 296 . 134 . 132 117 . 9 153 162 105 137 Effects 2 | . . . . . . . . . 1 . . . . . . . . . . . . . . 1 . Energy Bleed 1 | . . . . . . . . . . . . . . . . . . . . . . . . 1 . Interference 1 | . . . . . . . . . 1 . . . . . . . . . . . . . . . . Siege Activations . | . . . . . . . . . . . . . . . . . . . . . . . . . . Martial Activations . | . . . . . . . . . . . . . . . . . . . . . . . . . . Shielding Activations . | . . . . . . . . . . . . . . . . . . . . . . . . . . Robots Disrupted 9 | . . . . 1 . . . . 1 . . . . 2 . . . . 1 . . 2 . 2 . Combat Hostiles 8 | . . . . . . . . . 1 . . . . 2 . . . . 1 . . 2 . 2 . Robots Corrupted 5 | . . . . . . . . . 5 . . . . . . . . . . . . . . . . Combat Hostiles 1 | . . . . . . . . . 1 . . . . . . . . . . . . . . . . Parts Fried 6 | . . . . . . . . . 6 . . . . . . . . . . . . . . . . Impact Corruptions 17 | . . . . . . . . . 14 1 . 1 . . . . . . . . . . . . 1 Robots Melted . | . . . . . . . . . . . . . . . . . . . . . . . . . . Combat Hostiles . | . . . . . . . . . . . . . . . . . . . . . . . . . . Parts Melted 3 | . . . . . . . . . 1 . . . . 1 . . . 1 . . . . . . . Heat Transferred 50 | . . . . . . . . . . . . . . . . . . . . . . . . 50 . Parts Sabotaged . | . . . . . . . . . . . . . . . . . . . . . . . . . . Parts Stolen . | . . . . . . . . . . . . . . . . . . . . . . . . . . Parts Stripped 93 | . . . . . . . . . . . . . . 22 . . . 8 42 . . . 10 . 11 Power Chain Reactions . | . . . . . . . . . . . . . . . . . . . . . . . . . . Alert | -11 -10 -10 -9 -6 -6 -6 -6 -5 -5 -5 -5 -5 -4 -4 -4 -4 -4 -3 -3 -3 -2 -2 -2 -1 -1 ------- Run | Yrd Mat Sub Scr Fac Low Low Zio Pro Fac Upp Upp War Pro Fac Upp Upp Zhi Pro Res Tes Res Qua Frg Acc Com Maximum Alert Level 4 | . . . . 3 . . . . 2 . . . . 2 . . . . 2 3 1 1 2 4 3 Low Security (%) 25 | 100 100 . . 12 . . . . 40 . . . . 33 . . . . 32 . 2 54 25 . . Level 1 42 | . . . . 55 . . . . 25 . . . . 60 . . . . 51 18 97 45 52 22 . Level 2 22 | . . . . 22 . . . . 33 . . . . 6 . . . . 16 80 . . 22 28 56 Level 3 6 | . . . . 10 . . . . . . . . . . . . . . . 1 . . . 26 43 Level 4 1 | . . . . . . . . . . . . . . . . . . . . . . . . 22 . Level 5 . | . . . . . . . . . . . . . . . . . . . . . . . . . . High Security . | . . . . . . . . . . . . . . . . . . . . . . . . . . Max Security . | . . . . . . . . . . . . . . . . . . . . . . . . . . Peak Influence 1260 | 5 3 . . 1072 . . . . 604 . . . . 471 . . . . 695 707 344 291 447 1260 803 Initial 796 | . 3 . . . . . . . 16 . . . . . . . . . 23 390 264 22 134 265 796 Average 348 | . . . . 388 . . . . 286 . . . . 249 . . . . 258 484 274 169 322 747 725 Influence Increases 11395 | 5 . . . 1959 245 140 . 165 1345 158 . 287 145 1204 110 95 15 225 1093 630 196 903 819 1377 279 Destroy 0b10 Robot/C 5620 | . . . . 920 220 120 . 140 720 100 . 220 120 640 80 80 . 180 300 120 20 520 320 620 180 Destroy 0b10 Robot/NC 500 | 5 . . . 85 5 . . . 70 . . 15 5 55 10 5 15 20 50 20 10 20 30 65 15 Destroy Leader 976 | . . . . 194 20 20 . 10 142 10 . . 20 176 20 10 . 20 54 24 4 72 22 116 42 Allied During Kill 81 | . . . . . . . . . . 3 . 52 . 20 . . . 5 . . 1 . . . . Successful Hack 345 | . . . . 30 . . . . 12 . . . . 50 . . . . 25 12 62 96 34 24 . Disable Machine 225 | . . . . 45 . . . . . . . . . . . . . . . 90 . 60 15 15 . Anti-Garrison Action 1950 | . . . . 600 . . . . 200 . . . . 200 . . . . 400 200 . . 200 150 . Destroy Structure 243 | . . . . 10 . . . . 36 . . . . 18 . . . . 54 14 9 . 18 72 12 Partial Spotted 210 | . . . . . . . . . 15 . . . . . . . . . 45 45 30 15 15 45 . Lose Combat Pursuer 1245 | . . . . 75 . . . 15 150 45 . . . 45 . . . . 165 105 60 120 165 270 30 Influence Decreases 10670 | . 5 . . 889 664 425 366 139 770 611 148 128 304 824 490 95 15 190 433 855 626 704 615 574 800 Entered New Map 2725 | . 2 . . . 396 125 366 . 10 223 29 . 159 . 141 . . . 12 305 206 18 105 178 450 Time Decay 5426 | . 3 . . 699 198 270 . 129 510 318 119 68 145 514 309 95 15 148 324 190 90 356 410 356 160 Lost Part 1559 | . . . . 180 70 30 . 10 250 10 . . . 280 40 . . 42 87 60 10 180 80 40 190 Lost Ally 210 | . . . . 10 . . . . . 60 . 60 . 30 . . . . 10 . 20 . 20 . . Purge Threat 750 | . . . . . . . . . . . . . . . . . . . . 300 300 150 . . . Squads Dispatched 97 | . 1 . . 21 . . . . 8 . . . . 8 . . . . 10 9 6 6 7 17 4 Investigation 34 | . . . . 14 . . . . 3 . . . . 1 . . . . 4 1 5 1 5 . . Extermination 22 | . . . . 4 . . . . 2 . . . . 2 . . . . 3 1 1 4 . 3 2 Reinforcement 26 | . 1 . . 3 . . . . 3 . . . . 5 . . . . 3 4 . 1 2 4 . Assault 14 | . . . . . . . . . . . . . . . . . . . . 3 . . . 9 2 Garrison 1 | . . . . . . . . . . . . . . . . . . . . . . . . 1 . Intercept . | . . . . . . . . . . . . . . . . . . . . . . . . . . Searches Triggered . | . . . . . . . . . . . . . . . . . . . . . . . . . . Construction Impeded 1 | . . . . . . . . . . . . . . . . . . . . . . . . 1 . Haulers Reinforced 6 | . . . . 2 . . . . . . . . . 1 . . . . 1 1 . . . 1 . Active Scanning Responses . | . . . . . . . . . . . . . . . . . . . . . . . . . . Cargo Convoy Interrupts . | . . . . . . . . . . . . . . . . . . . . . . . . . . Stealth | -11 -10 -10 -9 -6 -6 -6 -6 -5 -5 -5 -5 -5 -4 -4 -4 -4 -4 -3 -3 -3 -2 -2 -2 -1 -1 --------- Run | Yrd Mat Sub Scr Fac Low Low Zio Pro Fac Upp Upp War Pro Fac Upp Upp Zhi Pro Res Tes Res Qua Frg Acc Com Distress Signals 35 | . 1 . . . . . . . 3 . . . . 2 . . . 1 1 4 . . 8 1 14 Communications Jammed 39 | . . . . . . . . . 29 . . . . . . . . 9 1 . . . . . . Distress Signals 39 | . . . . . . . . . 29 . . . . . . . . 9 1 . . . . . . Times Spotted 562 | . 2 3 . 56 10 6 . 8 56 9 . 38 8 43 4 5 . 16 38 20 20 42 86 58 34 Peak Tracking Total 15 | . 2 2 . 7 4 3 . 4 5 5 . 9 4 5 4 3 . 6 12 7 15 7 15 12 9 Tactical Retreats 41 | . . 1 . 3 . . . 1 8 1 . . . 2 . . . . 3 4 1 6 5 5 1 Traps | -11 -10 -10 -9 -6 -6 -6 -6 -5 -5 -5 -5 -5 -4 -4 -4 -4 -4 -3 -3 -3 -2 -2 -2 -1 -1 ------- Run | Yrd Mat Sub Scr Fac Low Low Zio Pro Fac Upp Upp War Pro Fac Upp Upp Zhi Pro Res Tes Res Qua Frg Acc Com Traps Triggered 12 | . . . . 1 . . . . . . . 1 . 2 . 1 . . . 1 1 4 1 . . Indirectly . | . . . . . . . . . . . . . . . . . . . . . . . . . . Trap Hack Attempts . | . . . . . . . . . . . . . . . . . . . . . . . . . . Triggered . | . . . . . . . . . . . . . . . . . . . . . . . . . . Disarmed . | . . . . . . . . . . . . . . . . . . . . . . . . . . Reprogrammed . | . . . . . . . . . . . . . . . . . . . . . . . . . . Reused . | . . . . . . . . . . . . . . . . . . . . . . . . . . Traps Extracted . | . . . . . . . . . . . . . . . . . . . . . . . . . . Installed 1 | . . . . . . . . . . . . 1 . . . . . . . . . . . . . Triggered . | . . . . . . . . . . . . . . . . . . . . . . . . . . Most Traps Carried 1 | . . . 1 1 1 1 1 1 1 1 1 1 . . . . . . . . . . . . . Machines | -11 -10 -10 -9 -6 -6 -6 -6 -5 -5 -5 -5 -5 -4 -4 -4 -4 -4 -3 -3 -3 -2 -2 -2 -1 -1 ---------- Run | Yrd Mat Sub Scr Fac Low Low Zio Pro Fac Upp Upp War Pro Fac Upp Upp Zhi Pro Res Tes Res Qua Frg Acc Com Machines Disabled 19 | . . . . 3 . . . . . . . 2 . . . 1 . . . 6 . 4 1 2 . Max in Single Turn 2 | . . . . 1 . . . . . . . 2 . . . 1 . . . 1 . 1 1 1 . Garrison Access 12 | . . . . 3 . . . . 1 . . . . 1 . . . . 3 1 1 . 1 1 . Energy Cycler 1 | . . . . . . . . . . . . . . . . . . . . . . . . 1 . Machines Repaired . | . . . . . . . . . . . . . . . . . . . . . . . . . . Machines Dismantled . | . . . . . . . . . . . . . . . . . . . . . . . . . . Machines Sabotaged . | . . . . . . . . . . . . . . . . . . . . . . . . . . Overloaded Fab Kills . | . . . . . . . . . . . . . . . . . . . . . . . . . . Hacking | -11 -10 -10 -9 -6 -6 -6 -6 -5 -5 -5 -5 -5 -4 -4 -4 -4 -4 -3 -3 -3 -2 -2 -2 -1 -1 --------- Run | Yrd Mat Sub Scr Fac Low Low Zio Pro Fac Upp Upp War Pro Fac Upp Upp Zhi Pro Res Tes Res Qua Frg Acc Com Machines Accessed 106 | . 2 . 3 18 . . . . 6 . . 1 . 7 1 1 4 . 16 10 10 12 11 2 2 Terminals 42 | . 2 . . 6 . . . . 2 . . . . 2 . . . . 5 5 5 8 5 1 1 Fabricators 10 | . . . . 2 . . . . 1 . . . . 2 . . . . 2 1 1 . . 1 . Repair Stations 6 | . . . . 1 . . . . . . . . . 1 . . . . 1 1 . 1 . . 1 Recycling Units 14 | . . . . 5 . . . . 1 . . . . . . . . . 2 . 3 . 3 . . Scanalyzers 12 | . . . . 1 . . . . 1 . . . . 1 . . . . 3 2 . 2 2 . . Garrison Access 12 | . . . . 3 . . . . 1 . . . . 1 . . . . 3 1 1 1 1 . . Total Hacks 234 | . 7 . 7 42 . . . . 13 . . 1 . 19 1 1 17 . 38 19 22 24 18 3 2 Successful 113 | . 2 . 7 13 . . . . 5 . . 1 . 10 1 1 17 . 19 8 13 6 8 1 1 Failed 119 | . 4 . . 29 . . . . 8 . . . . 9 . . . . 18 11 9 18 10 2 1 Catastrophic 31 | . . . . 9 . . . . 2 . . . . 1 . . . . 6 3 2 3 4 . 1 Database Lockouts 2 | . 1 . . . . . . . . . . . . . . . . . 1 . . . . . . Manual 86 | . 2 . . 27 . . . . 8 . . . . 9 . . . . 12 3 7 10 8 . . Terminals 95 | . 7 . . 13 . . . . 6 . . . . 6 . . . . 13 12 14 13 8 2 1 Fabricators 24 | . . . . 4 . . . . 3 . . . . 9 . . . . 3 1 3 . . 1 . Repair Stations 13 | . . . . 4 . . . . . . . . . 1 . . . . 2 1 . 4 . . 1 Recycling Units 29 | . . . . 15 . . . . 2 . . . . . . . . . 3 . 4 . 5 . . Scanalyzers 31 | . . . . 2 . . . . 1 . . . . 2 . . . . 14 4 . 4 4 . . Garrison Access 15 | . . . . 4 . . . . 1 . . . . 1 . . . . 3 1 1 3 1 . . Terminal Hacks 46 | . 2 . 7 1 . . . . 1 . . 1 . 1 1 1 17 . 1 5 5 1 . 1 1 Record 10 | . . . 5 . . . . . . . . . . . . . 5 . . . . . . . . Part Schematic 4 | . . . . . . . . . . . . . . . . . 4 . . . . . . . . Robot Analysis 5 | . 1 . . . . . . . . . . . . . . . 4 . . . . . . . . Prototype ID Bank 5 | . 1 . . . . . . . . . . . . . . . 4 . . . . . . . . Open Door 5 | . . . 1 . . . . . . . . 1 . . 1 1 . . . . . . . . 1 Level Access Points 1 | . . . . . . . . . . . . . . . . . . . . . 1 . . . . Branch Access Points 4 | . . . . . . . . . . . . . . 1 . . . . 1 . 1 . . 1 . Recycling Unit Index 1 | . . . . . . . . . 1 . . . . . . . . . . . . . . . . Unreport Threat 5 | . . . . . . . . . . . . . . . . . . . . 2 2 1 . . . Locate Traps 1 | . . . . 1 . . . . . . . . . . . . . . . . . . . . . Registered Components 1 | . . . . . . . . . . . . . . . . . . . . . 1 . . . . Zone Layout 2 | . . . . . . . . . . . . . . . . . . . . 2 . . . . . Proto ID Catalog 1 | . . . 1 . . . . . . . . . . . . . . . . . . . . . . Protovariant Controls 1 | . . . . . . . . . . . . . . . . . . . . 1 . . . . . Fabricator Hacks 5 | . . . . . . . . . . . . . . 2 . . . . 1 . 2 . . . . Network Status 2 | . . . . . . . . . . . . . . 1 . . . . 1 . . . . . . Load Schematic 1 | . . . . . . . . . . . . . . . . . . . . . 1 . . . . Build 2 | . . . . . . . . . . . . . . 1 . . . . . . 1 . . . . Repair Station Hacks 6 | . . . . 3 . . . . . . . . . . . . . . 1 . . 2 . . . Scan Component 5 | . . . . 2 . . . . . . . . . . . . . . 1 . . 2 . . . Repair 1 | . . . . 1 . . . . . . . . . . . . . . . . . . . . . Recycling Unit Hacks 2 | . . . . 2 . . . . . . . . . . . . . . . . . . . . . Report Inventory 2 | . . . . 2 . . . . . . . . . . . . . . . . . . . . . Scanalyzer 16 | . . . . 1 . . . . . . . . . . . . . . 9 2 . 1 3 . . Insert Component 6 | . . . . . . . . . . . . . . . . . . . 4 . . . 2 . . Analyze 1 | . . . . . . . . . . . . . . . . . . . 1 . . . . . . Retrieve Study 9 | . . . . 1 . . . . . . . . . . . . . . 4 2 . 1 1 . . Garrison Access Hacks 2 | . . . . . . . . . . . . . . . . . . . 1 . 1 . . . . Seal Access 2 | . . . . . . . . . . . . . . . . . . . 1 . 1 . . . . Unauthorized Hacks 36 | . . . . 6 . . . . 4 . . . . 7 . . . . 6 1 5 2 5 . . Terminals 8 | . . . . . . . . . 1 . . . . 1 . . . . 2 . 2 1 1 . . Assimilate 4 | . . . . . . . . . . . . . . . . . . . 1 . 2 1 . . . Botnet 3 | . . . . . . . . . 1 . . . . 1 . . . . 1 . . . . . . Disrupt 1 | . . . . . . . . . . . . . . . . . . . . . . . 1 . . Fabricators 7 | . . . . . . . . . 1 . . . . 5 . . . . 1 . . . . . . Report 1 | . . . . . . . . . . . . . . 1 . . . . . . . . . . . Prioritize 1 | . . . . . . . . . . . . . . 1 . . . . . . . . . . . Liberate 1 | . . . . . . . . . . . . . . . . . . . 1 . . . . . . Fabnet 3 | . . . . . . . . . 1 . . . . 2 . . . . . . . . . . . Haulers 1 | . . . . . . . . . . . . . . 1 . . . . . . . . . . . Repair Stations . | . . . . . . . . . . . . . . . . . . . . . . . . . . Recycling Units 11 | . . . . 3 . . . . 1 . . . . . . . . . 1 . 3 . 3 . . Fedlink 11 | . . . . 3 . . . . 1 . . . . . . . . . 1 . 3 . 3 . . Scanalyzers 1 | . . . . . . . . . . . . . . . . . . . . . . 1 . . . Researchers 1 | . . . . . . . . . . . . . . . . . . . . . . 1 . . . Garrison Access 9 | . . . . 3 . . . . 1 . . . . 1 . . . . 2 1 . . 1 . . Jam 9 | . . . . 3 . . . . 1 . . . . 1 . . . . 2 1 . . 1 . . Data Cores Recovered 8 | . . . . . . . . . . . . . . 2 . . . . 1 1 . 2 1 1 . Used 1 | . . . . . . . . . . . . . . . . . . . 1 . . . . . . Hacking Detections 77 | . 2 . . 15 . . . . 3 . . . . 6 . . . . 12 8 7 12 9 2 1 Full Trace Events 14 | . . . . 8 . . . . 1 . . . . . . . . . 1 . 2 1 1 . . Feedback Events 2 | . . . . 1 . . . . . . . . . . . . . . . . 1 . . . . Corruption 1 | . . . . 1 . . . . . . . . . . . . . . . . . . . . . Hackware Fried 1 | . . . . . . . . . . . . . . . . . . . . . 1 . . . . Feedback Blocked . | . . . . . . . . . . . . . . . . . . . . . . . . . . Robot Schematics Acquired 6 | . . . . . . . . . . . . . . . . . . . . 2 . 4 . . . Robots Built . | . . . . . . . . . . . . . . . . . . . . . . . . . . Authchips . | . . . . . . . . . . . . . . . . . . . . . . . . . . Time . | . . . . . . . . . . . . . . . . . . . . . . . . . . Total Robot Build Rating . | . . . . . . . . . . . . . . . . . . . . . . . . . . Part Schematics Acquired 11 | . . . . . . . . . . . . . . . . . 4 . . 4 . 3 . . . Parts Built 1 | . . . . . . . . . . . . . . 1 . . . . . . . . . . . Authchips . | . . . . . . . . . . . . . . . . . . . . . . . . . . Time 171 | . . . . . . . . . . . . . . 69 . . . . . . 102 . . . . Total Part Build Rating 9 | . . . . . . . . . . . . . . 9 . . . . . . . . . . . Part Studies Acquired 9 | . . . . 1 . . . . . . . . . . . . . . 4 2 . 1 1 . . Parts Repaired 1 | . . . . 1 . . . . . . . . . . . . . . . . . . . . . Time 35 | . . . . 35 . . . . . . . . . . . . . . . . . . . . . Parts Recycled . | . . . . . . . . . . . . . . . . . . . . . . . . . . Recycled Matter . | . . . . . . . . . . . . . . . . . . . . . . . . . . Retrieved Matter . | . . . . . . . . . . . . . . . . . . . . . . . . . . Retrieved Components . | . . . . . . . . . . . . . . . . . . . . . . . . . . Parts Scanalyzed 1 | . . . . . . . . . . . . . . . . . . . 1 . . . . . . Part Schematics Acquired . | . . . . . . . . . . . . . . . . . . . . . . . . . . Parts Damaged . | . . . . . . . . . . . . . . . . . . . . . . . . . . Bothacking | -11 -10 -10 -9 -6 -6 -6 -6 -5 -5 -5 -5 -5 -4 -4 -4 -4 -4 -3 -3 -3 -2 -2 -2 -1 -1 ------------ Run | Yrd Mat Sub Scr Fac Low Low Zio Pro Fac Upp Upp War Pro Fac Upp Upp Zhi Pro Res Tes Res Qua Frg Acc Com Used RIF Installer . | . . . . . . . . . . . . . . . . . . . . . . . . . . Robots Hacked 3 | . . . . . . . . . . . . . . . . . . 1 . 1 . . 1 . . Non-combat . | . . . . . . . . . . . . . . . . . . . . . . . . . . Combat 3 | . . . . . . . . . . . . . . . . . . 1 . 1 . . 1 . . Robot Hacks Applied . | . . . . . . . . . . . . . . . . . . . . . . . . . . Relay Couplers Released 3 | . . . . . . . . . . . . . . . . . . . . . . . 2 1 . Machine Destruction 3 | . . . . . . . . . . . . . . . . . . . . . . . 2 1 . Fabnet Peak Effective % 3 | . . . . . . . . . . . . . . . . . . 3 3 3 1 1 1 . . Autooverrided 3 | . . . . . . . . . . . . . . . . . . 1 . 1 . . 1 . . Robots Rewired 11 | . . . . 1 . . . . . 3 . 5 . 2 . . . . . . . . . . . Allies Hacked 1 | . . . . . . . . . . . . . 1 . . . . . . . . . . . . Hacks Repelled . | . . . . . . . . . . . . . . . . . . . . . . . . . . Allies | -11 -10 -10 -9 -6 -6 -6 -6 -5 -5 -5 -5 -5 -4 -4 -4 -4 -4 -3 -3 -3 -2 -2 -2 -1 -1 -------- Run | Yrd Mat Sub Scr Fac Low Low Zio Pro Fac Upp Upp War Pro Fac Upp Upp Zhi Pro Res Tes Res Qua Frg Acc Com Total Allies 17 | . . . . 1 . . . . . 3 . 5 . 2 . . . 1 1 1 2 . 1 . . Largest Group 5 | . . . . 1 . . . . . 3 . 5 1 1 . . . 1 1 1 2 . . . . Highest-Rated Group 258 | . . . . 17 . . . . . 87 . 258 64 64 . . . 47 10 56 71 . . . . Highest-Rated Ally 64 | . . . . 17 . . . . . 29 . 64 64 64 . . . 47 10 56 45 . . . . Initial UFD Resources 88 | . . . . 22 38 38 38 41 41 51 51 51 55 55 55 55 55 59 59 69 72 88 88 . . Total Orders 1 | . . . . . . . . . . . . 1 . . . . . . . . . . . . . GUARD 1 | . . . . . . . . . . . . 1 . . . . . . . . . . . . . Ally Attacks 88 | . . . . . . . . . . 13 . 59 . 6 . . . 3 . 7 . . . . . Total Damage 2819 | . . . . . . . . . . 189 . 2089 . 163 . . . 119 . 259 . . . . . Kills 15 | . . . . . . . . . . 2 . 12 . 1 . . . . . . . . . . . Allies Corrupted 2 | . . . . . . . . . . . . 1 . . . . . . 1 . . . . . . Allies Melted 1 | . . . . . . . . . . . . 1 . . . . . . . . . . . . . Intel | -11 -10 -10 -9 -6 -6 -6 -6 -5 -5 -5 -5 -5 -4 -4 -4 -4 -4 -3 -3 -3 -2 -2 -2 -1 -1 ------- Run | Yrd Mat Sub Scr Fac Low Low Zio Pro Fac Upp Upp War Pro Fac Upp Upp Zhi Pro Res Tes Res Qua Frg Acc Com Active Infowar (turns) 15382 | . . . 771 1082 314 594 859 629 1280 708 466 1229 613 1333 888 402 204 509 725 381 191 382 933 817 72 Optics 1759 | . . . . . . . . . . . . . . . . . . . . . . . 870 817 72 Sensors 2912 | . . . . . . . . . . . . . . . 846 392 204 509 162 . 8 6 654 131 . A.S.S. 1 | . . . . . . . . . . . . . . . . . . . . . . . 1 . . IFF 8475 | . . . 771 776 314 594 859 610 160 708 466 1229 613 1333 42 . . . . . . . . . . Structural 1187 | . . . . . . . . . . . . . . . . . . . 461 377 191 96 62 . . Decoding 1163 | . . . . . . . . . 1163 . . . . . . . . . . . . . . . . T.N.C. 214 | . . . . . . . . . . . . . . . . . . . 167 47 . . . . . Machine Analysis 1 | . . . . . . . . . . . . . . . . . . . . . . 1 . . . Cloaking 1086 | . . . . . . . . . . . . 5 473 608 . . . . . . . . . . . Jamming 1977 | . . . . 306 . . . 162 552 . . . . . 2 10 . 98 282 249 10 304 2 . . ECM 1 | . . . . . . . . . . . . . . . . . . . . . . 1 . . . Robot Analysis Total 5 | . 1 . . . . . . . . . . . . . . . 4 . . . . . . . . Derelict Logs Recovered 11 | . . 1 . . 1 1 . 1 . 1 2 . 2 . . 2 . . . . . . . . . Drone Launches . | . . . . . . . . . . . . . . . . . . . . . . . . . . Drone Recoveries . | . . . . . . . . . . . . . . . . . . . . . . . . . . Decoded 0b10 Intel 34 | . . . . . . . . . 34 . . . . . . . . . . . . . . . . Items 25 | . . . . . . . . . 25 . . . . . . . . . . . . . . . . Machines 1 | . . . . . . . . . 1 . . . . . . . . . . . . . . . . Patrols 7 | . . . . . . . . . 7 . . . . . . . . . . . . . . . . Exits 1 | . . . . . . . . . 1 . . . . . . . . . . . . . . . . Exploration | -11 -10 -10 -9 -6 -6 -6 -6 -5 -5 -5 -5 -5 -4 -4 -4 -4 -4 -3 -3 -3 -2 -2 -2 -1 -1 ------------- Run | Yrd Mat Sub Scr Fac Low Low Zio Pro Fac Upp Upp War Pro Fac Upp Upp Zhi Pro Res Tes Res Qua Frg Acc Com Turns Passed 21557 | 116 238 342 1803 3177 405 594 859 696 1752 709 466 1229 613 1509 913 636 204 825 759 381 191 812 984 817 527 Spaces Moved 18236 | 60 140 286 1389 1608 305 430 760 569 986 534 387 793 440 839 728 471 150 793 1272 804 687 1140 1307 915 443 Core 516 | 5 . 155 356 . . . . . . . . . . . . . . . . . . . . . . Treads 1083 | 55 140 131 710 . . . . . . . . . . . . . . . . . . . . . 47 Legs 9671 | . . . 323 1608 305 430 760 569 986 534 387 793 440 839 728 471 150 348 . . . . . . . Wheels 2 | . . . . . . . . . . . . . . . . . . 2 . . . . . . . Hover 3810 | . . . . . . . . . . . . . . . . . . 47 591 . . 554 1307 915 396 Flight 3154 | . . . . . . . . . . . . . . . . . . 396 681 804 687 586 . . . Fastest Speed 6 | 50 160 50 50 105 105 105 111 100 101 101 101 101 105 100 108 112 112 37 17 22 7 6 41 37 17 Average Speed 84 | 150 160 100 127 119 105 110 111 103 118 102 101 132 116 109 110 114 113 77 28 22 18 33 44 42 54 Slowest Speed 320 | 160 160 160 260 190 105 111 112 176 186 105 101 183 183 116 115 115 115 171 104 25 19 161 53 111 320 Overloaded Moves 90 | . . . . . . . . . . . . . . . . . . . . . 10 40 . . 40 Propulsion Burnouts . | . . . . . . . . . . . . . . . . . . . . . . . . . . Robots Hopped 11 | . . . . . . . . . . . . . . . . . . . 1 2 4 4 . . . Potential Cave-ins 2 | . . . . . . . . . . . . . . . . . . . . . . . 2 . . Cave-ins Triggered 1 | . . . . . . . . . . . . . . . . . . . . . . . . . 1 Teleports 5 | . . . . . . . . . . . . . . . . . . . . . . 3 2 . . Exploration Rate (%) 53 | 4 36 16 85 46 55 63 84 63 23 68 49 88 73 16 85 59 60 91 45 81 22 84 50 26 18 Regions Visited 25 Branch Regions 18 Pre-discovered Areas 7 | . . 1 . 1 . . . . . . 1 . 1 . . . 3 . . . . . . . . Known Exits Taken 15 | . . . . 1 . . . . 1 . 1 . 1 1 1 1 1 1 1 1 1 1 1 1 . Unknown Exits Taken 10 | 1 1 1 1 . 1 1 1 1 . 1 . 1 . . . . . . . . . . . . . Scrap Searched 43 | . . 1 8 . 2 5 3 4 . 2 4 . 4 . 5 1 . 4 . . . . . . . Spaces Dug 137 | . . . . 10 . 9 . 16 18 9 1 . . 9 1 . . 5 28 7 3 . 6 10 5 Terrain Destroyed 185 | . . . . 10 . 9 . 16 18 9 1 34 . 9 1 . . 5 28 7 3 . 6 24 5 Melee 137 | . . . . 10 . 9 . 16 18 9 1 . . 9 1 . . 5 28 7 3 . 6 10 5 Projectile . | . . . . . . . . . . . . . . . . . . . . . . . . . . AOE 48 | . . . . . . . . . . . . 34 . . . . . . . . . . . 14 . Terrain Rammed . | . . . . . . . . . . . . . . . . . . . . . . . . . . Walls Destroyed . | . . . . . . . . . . . . . . . . . . . . . . . . . . Machines Disabled . | . . . . . . . . . . . . . . . . . . . . . . . . . . Actions | -11 -10 -10 -9 -6 -6 -6 -6 -5 -5 -5 -5 -5 -4 -4 -4 -4 -4 -3 -3 -3 -2 -2 -2 -1 -1 --------- Run | Yrd Mat Sub Scr Fac Low Low Zio Pro Fac Upp Upp War Pro Fac Upp Upp Zhi Pro Res Tes Res Qua Frg Acc Com Total 22922 | 77 152 326 1421 2605 358 532 773 646 1408 652 457 977 510 1293 803 545 183 963 1566 951 735 1428 1677 1208 676 Wait 2046 | . 6 8 . 631 6 50 . 29 185 24 60 106 32 197 18 42 15 51 86 42 32 49 209 103 65 Move 18192 | 60 139 285 1388 1607 304 429 759 568 985 533 386 792 439 838 727 470 149 792 1269 800 679 1132 1306 914 442 Hop 9 | . . . . . . . . . . . . . . . . . . . 1 2 3 3 . . . Pick Up 278 | 3 3 . 16 30 6 7 4 4 20 3 1 12 3 30 11 1 3 13 22 14 3 15 17 19 18 Fast Attach 193 | 4 1 . 5 12 . 1 . . 15 1 5 11 . 15 7 . 3 18 22 16 2 31 14 4 6 Attach 180 | . . 3 2 26 7 2 1 2 18 2 1 2 3 24 4 1 1 7 9 5 2 12 14 7 25 Detach 34 | . . 1 . 6 . . . . . 1 . 6 . 1 2 . 1 2 1 2 . 3 2 . 6 Swap 233 | . . 1 3 39 5 7 3 8 19 . . 6 4 18 4 8 1 9 25 7 4 21 19 14 8 Drop 313 | . . 1 7 30 1 10 6 2 16 2 2 25 4 34 6 2 5 24 32 22 3 30 31 11 7 Fire . | . . . . . . . . . . . . . . . . . . . . . . . . . . Melee 1261 | . . . . 216 29 26 . 33 149 26 2 4 25 118 24 21 5 46 99 41 7 113 54 126 97 Ram 3 | . . 1 . . . . . . . . . . . . . . . . . . . . . . 2 Kick 2 | . . . . . . . . . 1 . . . . 1 . . . . . . . . . . . Crush 37 | 10 3 24 . . . . . . . . . . . . . . . . . . . . . . . Escape Stasis 22 | . . . . . . . . . . . . . . 2 . . . . . . . 19 1 . . Rewire 97 | . . 2 . 8 . . . . . 60 . 12 . 15 . . . . . . . . . . . Trap 1 | . . . . . . . . . . . . 1 . . . . . . . . . . . . . Miscellaneous 21 | . . . . . . . . . . . . . . . . . . 1 . . . . 10 10 . Route ------- -11/Scrapyard -10/Materials (discovered 2 exits: [*Min] / [*Sub]) -10/Subcaves -9/Scraptown (discovered 2 exits: *Fac x2) -6/Factory (discovered 3 exits: *Fac / *Low x2) -6/Lower Caves -6/Lower Caves -6/Zion -5/Proximity Caves -5/Factory (discovered 3 exits: *Fac / *Upp x2) -5/Upper Caves -5/Upper Caves -5/Warlord -4/Proximity Caves -4/Factory (discovered 3 exits: *Upp x2 / Arm) -4/Upper Caves -4/Upper Caves (discovered 2 exits: *Res / *Zhi) -4/Zhirov -3/Proximity Caves -3/Research (discovered 2 exits: *Tes x2) -3/Testing -2/Research (discovered 5 exits: *Acc x3 / *Qua x2) -2/Quarantine (discovered 3 exits: *Acc / *Sec / *Frg) -2/Protoforge -1/Access -1/Command (discovered 2 exits: [*Sur x2]) 0b11 Command History --------- Turn | Location | Event 5 | -11/Scrapyard | Discovered new exit (range 14) 117 | -11/Scrapyard | Entered Materials 118 | -10/Materials | Met a group of wandering Federalists 155 | -10/Materials | Central database locked down 289 | -10/Materials | Discovered new exit (range 7) 303 | -10/Materials | Build established: Mutant 350 | -10/Materials | Discovered new exit (range 5) 355 | -10/Materials | Entered Subcaves 356 | -10/Subcaves | Continued accompanying wandering Federalists (2) 356 | -10/Subcaves | Approached by a straggling Scientist 398 | -10/Subcaves | Disturbed a concealed Subdweller 473 | -10/Subcaves | Core integrity fell below 50% 602 | -10/Subcaves | Learned location of Zion (-6) 611 | -10/Subcaves | Shifting Twisted Machinery released Sub. Shrapnel Launcher 627 | -10/Subcaves | Shifting Twisted Machinery released Sub. Machine Gun 669 | -10/Subcaves | Lost 3 parts (2n1u) 697 | -10/Subcaves | Entered Scraptown 761 | -9/Scraptown | Visited Fellowship of the Rings 764 | -9/Scraptown | Visited Bundlers 798 | -9/Scraptown | Visited Red Mages 806 | -9/Scraptown | Visited The Evicted 811 | -9/Scraptown | Visited Spacefarers 863 | -9/Scraptown | Heard Great Nut preacher, LISTEN AND RECITE! 959 | -9/Scraptown | Discovered new exit (range 13) 1083 | -9/Scraptown | Visited UFD Registry 1083 | -9/Scraptown | Registered with UFD as "Pyroform" 1109 | -9/Scraptown | Visited Chapter 10 1126 | -9/Scraptown | Visited Infowarlord's Domain 1144 | -9/Scraptown | Visited Science Guys 1316 | -9/Scraptown | Visited Derelict Rescue Squad 1344 | -9/Scraptown | Found DRS Beacon 1374 | -9/Scraptown | Visited DA-N13 Charitable Foundation 1380 | -9/Scraptown | Found DCF Scrap (30 items) 1461 | -9/Scraptown | Visited Junk Repository 1513 | -9/Scraptown | Visited Abandonware Association 1524 | -9/Scraptown | Learned abandonware demo "OVRCLOCK.EXE" 1529 | -9/Scraptown | Learned abandonware demo "REPAIR.EXE" 1529 | -9/Scraptown | Learned abandonware demo "POISON.EXE" 1572 | -9/Scraptown | Visited Observation Area 1618 | -9/Scraptown | Visited Sword Containment 1635 | -9/Scraptown | Found Prototype Slashing Weapon 1635 | -9/Scraptown | Identified Companion Sword 1728 | -9/Scraptown | Found Exp. Signal Interpreter 2415 | -9/Scraptown | Met Optimus 2415 | -9/Scraptown | Accepted into 0bPrime 2493 | -9/Scraptown | Discovered new exit (range 5) 2500 | -9/Scraptown | Entered Factory 2500 | -6/Factory | Evolved 8 slots: Propulsion x3, Utility x5 2798 | -6/Factory | Build established: Derelict-Mutant 3031 | -6/Factory | Discovered new exit (range 16) 3332 | -6/Factory | Identified exit to Lower Caves 3411 | -6/Factory | Build established: Mutant 3574 | -6/Factory | Loaded intel: 8 recycling unit locations 4158 | -6/Factory | Build established: Scavenger-Mutant 4352 | -6/Factory | Discovered exit to Lower Caves (range 12) 4579 | -6/Factory | Discovered new exit (range 5) 4781 | -6/Factory | Lost 6 parts (4n2u) 5026 | -6/Factory | Learned location of Protoforge (-2) 5486 | -6/Factory | Repaired Broken IFF Parser 5556 | -6/Factory | Core integrity fell below 50% 5648 | -6/Factory | Build established: Scavenger-Gladiator 5677 | -6/Factory | Entered Lower Caves 5716 | -6/Lower Caves | Encountered a Warlord checkpoint 5870 | -6/Lower Caves | Lost 4 parts (3n1u) 5977 | -6/Lower Caves | Attracted the attention of an 0b10 checkpoint 5982 | -6/Lower Caves | Learned Factory trap positions 6071 | -6/Lower Caves | Discovered new exit (range 11) 6082 | -6/Lower Caves | Entered another Lower Caves area 6170 | -6/Lower Caves | Learned Factory stockpile data 6534 | -6/Lower Caves | Discovered new exit (range 16) 6676 | -6/Lower Caves | Entered Zion 6720 | -6/Zion | System corruption cleaned by Quarantine Array 6782 | -6/Zion | Discovered new exit (range 11) 7160 | -6/Zion | Turned away by Imprinter 7301 | -6/Zion | Learned Factory emergency access door positions 7535 | -6/Zion | Entered Proximity Caves 7538 | -5/Proximity Caves | Attracted the attention of an 0b10 checkpoint 7683 | -5/Proximity Caves | Spotted B-75 Beast 7684 | -5/Proximity Caves | Core integrity fell below 20% 7980 | -5/Proximity Caves | Build established: Derelict-Gladiator 8224 | -5/Proximity Caves | Discovered new exit (range 8) 8231 | -5/Proximity Caves | Entered Factory 8231 | -5/Factory | Evolved 2 slots: Power x1, Utility x1 8232 | -5/Factory | Identified exit to Upper Caves 8233 | -5/Factory | Loaded intel: 84 trap records 8821 | -5/Factory | Build established: Scavenger-Gladiator 8965 | -5/Factory | Loaded intel: 8 recycling unit locations 9094 | -5/Factory | Identified exit to Factory 9402 | -5/Factory | System corruption reached 10% 9438 | -5/Factory | Lost 4 parts (1n3u) 9622 | -5/Factory | Lost 4 parts (1n3u) 9686 | -5/Factory | Lost 6 parts (2p3n1u) 9750 | -5/Factory | Discovered exit to Upper Caves (range 8) 9860 | -5/Factory | Lost 7 parts (1p3n3u) 9944 | -5/Factory | Core integrity fell below 50% 9983 | -5/Factory | Entered Upper Caves 10085 | -5/Upper Caves | Encountered a Warlord checkpoint 10090 | -5/Upper Caves | Learned location of 2 exits from Factory 10164 | -5/Upper Caves | Attacked by a delusional Derelict stockpiling Unaware 10265 | -5/Upper Caves | Spotted B-75 Beast 10569 | -5/Upper Caves | Discovered new exit (range 15) 10692 | -5/Upper Caves | Entered another Upper Caves area 10857 | -5/Upper Caves | Identified exit to Warlord 10973 | -5/Upper Caves | Learned location of Armory (-4) 11158 | -5/Upper Caves | Entered Warlord 11192 | -5/Warlord | System corruption cleaned by Quarantine Array 11659 | -5/Warlord | Warned about trapping base interior 11665 | -5/Warlord | Found Prototype Device 11665 | -5/Warlord | Identified Exp. Focal Shield 11668 | -5/Warlord | Found Prototype Processor 11668 | -5/Warlord | Identified Exp. Armor Integrity Analyzer 11684 | -5/Warlord | Found Prototype Device 11684 | -5/Warlord | Identified Exp. Cloaking Device 11694 | -5/Warlord | Found Prototype Reactor 11694 | -5/Warlord | Identified Vortex Chain Reactor 11879 | -5/Warlord | Warlord's base attacked by MAIN.C 12008 | -5/Warlord | Rebuked by Warlord 12220 | -5/Warlord | P-80 Master assimilated allied TI-WAF(m) 12229 | -5/Warlord | Warlord forces counterattacked 12242 | -5/Warlord | Spotted Executioner 12265 | -5/Warlord | Spotted Executioner 12291 | -5/Warlord | Spotted Striker 12292 | -5/Warlord | Spotted Executioner 12310 | -5/Warlord | Destroyed Striker 12328 | -5/Warlord | Found Prototype Processor 12329 | -5/Warlord | Identified Exp. Targeting Computer 12333 | -5/Warlord | Found Prototype Processor 12333 | -5/Warlord | Identified Exp. Core Analyzer 12338 | -5/Warlord | Lost 12 allies 12369 | -5/Warlord | Discovered new exit (range 12) 12387 | -5/Warlord | Entered Proximity Caves 12387 | -4/Proximity Caves | Accompanied by 1 ally 12395 | -4/Proximity Caves | Learned Research interactive machine intel 12409 | -4/Proximity Caves | Learned location of Quarantine (-2) 12477 | -4/Proximity Caves | Attracted the attention of an 0b10 checkpoint 12503 | -4/Proximity Caves | Forged Quantum Companion 12884 | -4/Proximity Caves | Discovered exit to Factory (range 12) 13000 | -4/Proximity Caves | Entered Factory 13000 | -4/Factory | Accompanied by 1 ally 13000 | -4/Factory | Evolved 2 slots: Propulsion x1, Utility x1 13001 | -4/Factory | Identified exit to Armory 13001 | -4/Factory | Identified exit to Upper Caves 13380 | -4/Factory | Lost 3 parts (3u) 13685 | -4/Factory | Lost 6 parts (2n4u) 13710 | -4/Factory | Spotted B-86 Titan 13723 | -4/Factory | Destroyed B-86 Titan 13730 | -4/Factory | Found Hvy. Reflective Plating 14215 | -4/Factory | Fabricated Centrium Leg (x1) 14385 | -4/Factory | Lost 14 parts (2p5n6u1w) 14509 | -4/Factory | Entered Upper Caves 14571 | -4/Upper Caves | Core integrity fell below 50% 14646 | -4/Upper Caves | Lost 4 parts (2n2u) 14864 | -4/Upper Caves | Build established: Scavenger-Mutant 15306 | -4/Upper Caves | Build established: Scavenger-Gladiator 15416 | -4/Upper Caves | Discovered new exit (range 4) 15419 | -4/Upper Caves | Identified exit to Upper Caves 15422 | -4/Upper Caves | Entered another Upper Caves area 15454 | -4/Upper Caves | Attracted the attention of an 0b10 checkpoint 15499 | -4/Upper Caves | Discovered new exit (range 5) 15504 | -4/Upper Caves | Identified exit to Research 15515 | -4/Upper Caves | Learned Research non-interactive machine intel 15780 | -4/Upper Caves | Attacked by a delusional Derelict stockpiling parts 15836 | -4/Upper Caves | Discovered new exit (range 6) 15842 | -4/Upper Caves | Identified exit to Zhirov 15857 | -4/Upper Caves | Learned Research trap positions 16058 | -4/Upper Caves | Entered Zhirov 16058 | -4/Zhirov | Discovered new exit (range 3) 16060 | -4/Zhirov | Identified exit to Proximity Caves 16079 | -4/Zhirov | Met Zhirov 16099 | -4/Zhirov | Learned location of Testing (-3) 16099 | -4/Zhirov | Learned location of Command (-1) 16109 | -4/Zhirov | Zhirov requested help retrieving the SGEMP Prototype 16127 | -4/Zhirov | Found Alien Artifact 16127 | -4/Zhirov | Identified Integrated Reactor 16127 | -4/Zhirov | Installed Integrated Reactor, increased core energy generation (+10) 16215 | -4/Zhirov | Found Alien Artifact 16262 | -4/Zhirov | Entered Proximity Caves 16263 | -3/Proximity Caves | Activated DRS Beacon 16559 | -3/Proximity Caves | Unaware initiated a cargo recovery operation 16627 | -3/Proximity Caves | Spotted Striker 16627 | -3/Proximity Caves | Spotted Striker 16640 | -3/Proximity Caves | Destroyed Striker 16659 | -3/Proximity Caves | Destroyed Striker 16699 | -3/Proximity Caves | Lost 7 parts (1p4n2u) 16777 | -3/Proximity Caves | Found Prototype Device 16777 | -3/Proximity Caves | Identified Exp. Actuator Array 16818 | -3/Proximity Caves | Found Prototype Hackware 16862 | -3/Proximity Caves | Found Exp. Actuator Array 16864 | -3/Proximity Caves | Found Exp. Actuator Array 16867 | -3/Proximity Caves | Found Exp. Actuator Array 16919 | -3/Proximity Caves | Attracted the attention of an 0b10 checkpoint 16919 | -3/Proximity Caves | Core integrity fell below 20% 17038 | -3/Proximity Caves | Discovered exit to Research (range 14) 17087 | -3/Proximity Caves | Entered Research 17087 | -3/Research | Evolved 2 slots: Propulsion x2 17088 | -3/Research | Loaded intel: 64 trap records 17089 | -3/Research | Loaded intel: 58 non-interactive machine locations 17090 | -3/Research | Loaded intel: 46 interactive machine locations 17105 | -3/Research | Identified Exp. Hacking Suite 17142 | -3/Research | Spotted B-86 Titan 17196 | -3/Research | Lost 3 parts (1n2u) 17219 | -3/Research | Found Prototype Device 17220 | -3/Research | Found Prototype Device 17282 | -3/Research | Identified Exp. Thermal Shield (x2) 17317 | -3/Research | Spotted B-86 Titan 17367 | -3/Research | Destroyed B-86 Titan 17370 | -3/Research | Found Hvy. Reflective Plating 17698 | -3/Research | Spotted B-86 Titan 17708 | -3/Research | Identified exit to Testing 17798 | -3/Research | Central database locked down 17798 | -3/Research | Identified Transdimensional Reconstructor 17828 | -3/Research | Loaded intel: 5 recycling unit locations 17846 | -3/Research | Entered Testing 17856 | -3/Testing | Found Prototype Protection 17856 | -3/Testing | Identified Centrium Heavy Armor Plating 17874 | -3/Testing | Found Prototype Ballistic Cannon 17877 | -3/Testing | Identified Omega Cannon 17891 | -3/Testing | Found Prototype Hackware 17919 | -3/Testing | Build established: Scavenger-Sprinter 17971 | -3/Testing | Identified Exp. System Shield 18041 | -3/Testing | Core integrity fell below 50% 18091 | -3/Testing | Found Prototype Device 18096 | -3/Testing | First assault squad dispatched 18097 | -3/Testing | Lost 5 parts (1p1n2u1w) 18181 | -3/Testing | Discovered new exit (range 9) 18187 | -3/Testing | Found Prototype Device 18187 | -3/Testing | Identified AEGIS Remote Shield 18201 | -3/Testing | Protovariant out of control (PP-6O52EE5MYR) 18201 | -3/Testing | Unleashed a protovariant (PP-6O52EE5MYR) 18227 | -3/Testing | Identified exit to Research 18227 | -3/Testing | Entered Research 18227 | -2/Research | Evolved 2 slots: Propulsion x1, Utility x1 18243 | -2/Research | Loaded intel: 5 recycling unit locations 18270 | -2/Research | Identified exit to Access 18270 | -2/Research | Hacking Suite fried by hacking feedback 18373 | -2/Research | Identified exit to Quarantine 18418 | -2/Research | Entered Quarantine 18427 | -2/Quarantine | Identified Adv. Kinecellerator 18432 | -2/Quarantine | Found Transdimensional Reconstructor 18436 | -2/Quarantine | Found Alien Artifact 18438 | -2/Quarantine | Found Alien Artifact 18438 | -2/Quarantine | Identified Dimensional Node Initializer (x2) 18438 | -2/Quarantine | Initialized slip node 18445 | -2/Quarantine | Found Alien Artifact 18445 | -2/Quarantine | Identified Hpw. Transdimensional Reconstructor 18445 | -2/Quarantine | Warped through subspace to slip node 18447 | -2/Quarantine | Found Transdimensional Reconstructor 18447 | -2/Quarantine | Warped through subspace to slip node 18449 | -2/Quarantine | Found Dimensional Node Initializer 18449 | -2/Quarantine | Initialized slip node 18452 | -2/Quarantine | Found Transdimensional Reconstructor 18452 | -2/Quarantine | Warped through subspace to slip node 18620 | -2/Quarantine | Lost 5 parts (1p3n1u) 18679 | -2/Quarantine | Watched by a mysterious "MATRIX" hacker 18723 | -2/Quarantine | Found Alien Slashing Weapon 18820 | -2/Quarantine | System corruption reached 10% 18901 | -2/Quarantine | Core integrity fell below 50% 18948 | -2/Quarantine | Found Alien Artifact 18966 | -2/Quarantine | Discovered exit to Access (range 9) 18997 | -2/Quarantine | Build established: Scavenger-Mutant 19046 | -2/Quarantine | Lost 3 parts (1n1u1w) 19061 | -2/Quarantine | Found Alien Artifact 19062 | -2/Quarantine | Identified Subatomic Replicator 19062 | -2/Quarantine | Forged Prototype Slashing Weapon 19197 | -2/Quarantine | Spotted Fortress 19226 | -2/Quarantine | Discovered new exit (range 6) 19226 | -2/Quarantine | Discovered new exit (range 6) 19228 | -2/Quarantine | Identified exit to Section 7 19229 | -2/Quarantine | Lost 3 parts (1n2u) 19230 | -2/Quarantine | Identified exit to Protoforge 19230 | -2/Quarantine | Entered Protoforge 19267 | -2/Protoforge | Spotted Hotshot 19278 | -2/Protoforge | Identified Terrabomb 19278 | -2/Protoforge | Identified Sigix Broadsword 19295 | -2/Protoforge | Used Terrabomb 19295 | -2/Protoforge | Spotted EXE-6 19295 | -2/Protoforge | Spotted EXE-6 19298 | -2/Protoforge | Spotted AP7-3 19301 | -2/Protoforge | Spotted Decapitator 19303 | -2/Protoforge | Spotted Decapitator 19304 | -2/Protoforge | Superfortress began startup sequence 19321 | -2/Protoforge | UFD initiated attack on Protoforge (Readiness: Adequate) 19321 | -2/Protoforge | Loaded intel: 3 recycling unit locations 19338 | -2/Protoforge | Destroyed EXE-6 19342 | -2/Protoforge | Found Exp. Core Analyzer 19350 | -2/Protoforge | Found Prototype Device 19350 | -2/Protoforge | Identified Exp. Kinecellerator 19357 | -2/Protoforge | Optimus greeted in Protoforge 19388 | -2/Protoforge | Initialized slip node 19397 | -2/Protoforge | Lost 4 allies 19473 | -2/Protoforge | Spotted Hotshot 19473 | -2/Protoforge | Spotted Hotshot 19473 | -2/Protoforge | Spotted Hotshot 19497 | -2/Protoforge | Core integrity fell below 20% 19498 | -2/Protoforge | Destroyed Hotshot 19505 | -2/Protoforge | Lost 4 parts (1p2n1u) 19524 | -2/Protoforge | Destroyed Hotshot 19543 | -2/Protoforge | Warped through subspace to slip node 19566 | -2/Protoforge | Found UFD Drillbomb 19573 | -2/Protoforge | Lost 3 parts (1n1u1w) 19581 | -2/Protoforge | Spotted Striker 19585 | -2/Protoforge | Spotted Striker 19585 | -2/Protoforge | Spotted Executioner 19586 | -2/Protoforge | Spotted Executioner 19631 | -2/Protoforge | Spotted Hotshot 19661 | -2/Protoforge | Spotted Executioner 19661 | -2/Protoforge | Spotted Striker 19669 | -2/Protoforge | Lost 3 allies 19670 | -2/Protoforge | Met 7R-MNS 19700 | -2/Protoforge | Spotted Hotshot 19721 | -2/Protoforge | Lost 4 allies 19785 | -2/Protoforge | UFD reported confirmed Drillbomb installation 19826 | -2/Protoforge | UFD reported confirmed Drillbomb installation 19837 | -2/Protoforge | Spotted Striker 19905 | -2/Protoforge | Installed UFD Drillbomb at designated target 19905 | -2/Protoforge | UFD reported confirmed Drillbomb installation 19943 | -2/Protoforge | UFD reported confirmed Drillbomb installation 19943 | -2/Protoforge | Found Prototype Device 19944 | -2/Protoforge | Identified Exp. Transmission Jammer 19955 | -2/Protoforge | Found Prototype Protection 19959 | -2/Protoforge | Found Prototype Device 19979 | -2/Protoforge | Identified Exp. Active Sensor Suite 19981 | -2/Protoforge | Identified Centrium Heavy Armor Plating 19990 | -2/Protoforge | Found UFD Drillbomb 20007 | -2/Protoforge | Build established: Scavenger-Scout 20022 | -2/Protoforge | Spotted Hotshot 20022 | -2/Protoforge | Spotted Hotshot 20096 | -2/Protoforge | Spotted Executioner 20115 | -2/Protoforge | Spotted Striker 20116 | -2/Protoforge | Spotted Striker 20123 | -2/Protoforge | Spotted Executioner 20132 | -2/Protoforge | Spotted Executioner 20132 | -2/Protoforge | UFD reported confirmed Drillbomb installation 20135 | -2/Protoforge | Warped through subspace 20198 | -2/Protoforge | Destroyed Striker 20209 | -2/Protoforge | Discovered exit to Access (range 5) 20214 | -2/Protoforge | Entered Access 20214 | -1/Access | Evolved 2 slots: Weapon x2 20247 | -1/Access | Spotted B-99 Colossus 20312 | -1/Access | Spotted Striker 20312 | -1/Access | Spotted Striker 20351 | -1/Access | Destroyed Striker 20380 | -1/Access | Destroyed Striker 20464 | -1/Access | First assault squad dispatched 20635 | -1/Access | Garrison activated, responded to threat 20670 | -1/Access | Build established: Scavenger-Gladiator 20734 | -1/Access | Energy Cycler disabled 20898 | -1/Access | Destroyed 7 combat bots 20907 | -1/Access | Identified exit to Command 21031 | -1/Access | Entered Command 21184 | -1/Command | Spotted M Guard 21184 | -1/Command | Spotted Combat Programmer 21193 | -1/Command | Spotted Combat Programmer 21204 | -1/Command | Crushed by falling debris 21207 | -1/Command | Spotted M Guard 21216 | -1/Command | System corruption reached 10% 21249 | -1/Command | Destroyed Combat Programmer 21273 | -1/Command | Lost 10 parts (3p1n4u2w) 21281 | -1/Command | First assault squad dispatched 21328 | -1/Command | Met MAIN.C 21343 | -1/Command | 0b10 Conduit disabled 21365 | -1/Command | Destroyed MAIN.C Shell 21365 | -1/Command | MAIN.C activated Command garrisons 21383 | -1/Command | Found Centrium Heavy Armor Plating 21412 | -1/Command | Destroyed MAIN.C 21413 | -1/Command | Discovered new exit (range 41) 21413 | -1/Command | Discovered new exit (range 113) 21413 | -1/Command | Extracted map data and part IDs from MAIN.C's data core 21418 | -1/Command | Found Zero-point Reactor 21448 | -1/Command | Lost 7 parts (2p3n2u) 21465 | -1/Command | Found Exp. Shock Absorption System 21494 | -1/Command | Build established: Scavenger-Mutant 21538 | -1/Command | Spotted Striker 21539 | -1/Command | Spotted Striker 21544 | -1/Command | Spotted Striker 21551 | -1/Command | Spotted Striker 21552 | -1/Command | Spotted B-99 Colossus 21558 | *** | Establishing 0b11! Last Messages --------------- 21545_ Striker destroyed. 21545_ Striker knocked back. 21545_ Slug penetrates Striker. 21545_ Slug penetrates P-80 Master. 21545_ Slug penetrates Striker. 21545_ Slug penetrates 0b10 Conduit. 21549_ W-44 Eye suffers critical hit (Impale). 21549_ W-44 Eye destroyed. 21549_ Slug penetrates Striker. 21549_ Striker destroyed. 21551_ Chain reaction triggered in Mic. Antimatter Reactor. 21551_ W-44 Eye destroyed. 21552_ Acquired 41 matter. 21552_ Acquired 19 matter. 21552_ Knocked back. 21552_ Penetrated by Slug. Superquantum Companion releases a shadow of itself that zips off towards P-80 Master. 21552_ P-80 Master destroyed. 21555_ Slug penetrates Wall. Map ----- +----------------------------------------------------+ | # #"" + ## ] #?# #?#?# | | # "" #"" ## ## #?######?#?# | | # T" #"" ## ## #????????#?# | | "" ! # #T ## ## #????????#?# | | """" ## ##"" # ##+######???????#?# | | """" = ## ##"" # #???????#?# | | "" ## ##"" + #???????#?# | | ## ## [ # #???????#?# | | !!## + # ####" #??######?# | | !!## ## "" #######???# ####"""#### | | ## ## """" #?????????# % % % | | ############# ## """" #?????????# | | """""#???# ## "" #?????????# % | | """#???# + #????##########" "#### | | """#?###+##+### ###### #% ###?# | | """#?# # + + ] *%! #?#?# | | """""#?# ####+########## " #?#?# | | ######?# "" #??# #????????# " #?#?? | | ???????# """ ] #??# #????????# ""T" # #?### | | ???????# "T #### #????????# """"" # #???? | | ???????# """ Y #????????# # #???? | | ???????# "" ######????????# % % # #???? | | ???????# #??????########;;###k#### #???? | | ???????# #??????# =% % #???? | | ??????#####+#######????# ! #???? | | ####### #????# @ ##### ##### | | # #????# #???# | | # """ #????#####???# | | # ""T"" ############## ######+########" | | " + "" "" # ## ### #?####" | | # + # ## #?#]]] | | # ] # !=! # k ## ! ""#?#[[] | | ## ### # =! # ## ""#?#!!! | | ?# #?############# =! # ## ""#?#!!!* | | ?# #????##########* ## ### T#?##### | | ?# #????# + + ## #?# ""#?????? | | ?# #????# = #######+####+### #?# ""#?????? | | ?# ###### #?????# #?# ### ""#?????? | | ?# + #?????# #?# + #?????? | | ?# ###### #?????# #?# ##### #?????? | | ?# #????# #?????# #?# #???# #?????? | | ## ##########+######## ### #???# #?????? | | #???##+#####?????? | | #????# #?????????? | | #################+#########+########?# #?????????? | | ?????# """T""" # #?# #?????????? | | ?????# """ """ # ! ### #?????????? | | ?????# !# !!! + #?????????? | | ###### + !!! ! #####?????????? | | + # !!! * #????????????? | +----------------------------------------------------+ Best States ------------- Heat Dissipation 101 Coolant Potential 80 Energy Generation 65 Energy Capacity 2070 Matter Stores 300 Matter Capacity 800 Sight Range 23 Robot Scan Range 20 Terrain Scan Density 10 Jamming Range 14 Cloak Strength 4 Additional Mass Support 12 Base Temperature (-) 200 EM Shielding 3 Armor Coverage 1200 Resistance: KI 30 Resistance: TH 25 Resistance: EM 25 Core Shielding 30 Propulsion Shielding 90 Weapon Shielding 66 Melee Speed Boost 40 Phase Shifting 10 Evasion (%) 79 Targeting Accuracy 12 Melee Accuracy 20 Core Analysis 12 Armor Integrity Analysis 50 Recoil Reduction 5 Offensive Hacking 22 Defensive Hacking 22 Item Schematics ----------------- Assault Drone Bay | -4/Zhirov | Free Exp. Heat Sink | -4/Zhirov | Free Exp. Optical Array | -4/Zhirov | Free Imp. Arc Thrower | -4/Zhirov | Free Com. Particle Reactor | -3/Testing | Archive Hvy. Antimatter Reactor | -3/Testing | Archive Cld. Impulse Thruster | -3/Testing | Archive Exp. Field Recycling Unit | -3/Testing | Archive Diametric Drive | -2/Quarantine | Archive Exp. Power Amplifier | -2/Quarantine | Archive Adv. Energy Well | -2/Quarantine | Archive Robot Schematics ------------------ R-10 Processor | -3/Testing | Archive H-77 Assassin | -3/Testing | Archive D-83 Annihilator | -2/Quarantine | Archive T-07 Excavator | -2/Quarantine | Archive A-27 Freighter | -2/Quarantine | Archive G-73 Enforcer | -2/Quarantine | Archive Fabricated ------------ Centrium Leg | x1 | -4/Factory | Preloaded Repaired ---------- IFF Parser | 10% | -6/Factory | Broken Studied --------- Carbon-fiber Leg | -6/Factory | Hacked Imp. Antigrav System | -3/Research | Hacked Mic. Antimatter Reactor | -3/Research | Hacked Q-thruster | -3/Research | Hacked Impulse Thruster Array | -3/Research | Hacked Enh. Force Lance | -3/Testing | Hacked Lgt. Antimatter Reactor | -3/Testing | Hacked Cmb. Antigrav System | -2/Quarantine | Hacked Cmb. Linear Gravjet | -2/Protoforge | Hacked Alien Tech Used ----------------- Integrated Reactor Dimensional Node Initializer High-powered Transdimensional Reconstructor Transdimensional Reconstructor Subatomic Replicator Terrabomb Sigix Broadsword Achievements -------------- None Challenges ------------ None Game ------ Seed TowerModifiedBotcube Manual? 0 Play Time 05:06:49 Cumulative 1797.7 hours Start 2026.09.08 @ 07:11:55 End 2026.09.08 @ 14:13:06 Sessions 5 Manual Loads 0 Difficulty Rogue Special Mode None Game No. 545 Rogue 537 Adventurer 4 Explorer 4 Win Type 1 Total 75 Types 31/11/6/4/2/5/9/2/3/2 Lore% 98 Gallery% 96 Achievement% 93 Wizard Run 0 Options --------- Layout 0 ASCII 0 Keyboard 0 Movement Numpad Keybinds 0 Fullscreen 2 Font 18/SmallcapsGlow Map View 76x50 Zoom Use 0% Tactical HUD 1 Map Filters NONE Filters NONE Steam 1 RUN: a9758d42-c7b3-4c2c-ae1f-8bb76d93752a